[Event "Titled Tuesday Blitz March 15 Early 2022"]
[White "Tsatsalashvili, Keti"]
[Black "Migot, Tangi"]
[WhiteFideId "13603434"]
[BlackFideId "662445"]
[WhiteElo "2246"]
[BlackElo "2508"]
[Result "0-1"]
[Round "06"]
[TimeControl "180+1"]
[Date "2022.03.15"]
[WhiteClock "0:00:03"]
[BlackClock "0:00:19"]

1. d4 {[%clk 0:03:00]}  d6 {[%clk 0:02:59]} 2. Nf3 {[%clk 0:03:01]}  Bg4 {[%clk 0:02:59]} 3. c4 {[%clk 0:02:57]}  c6 {[%clk 0:02:57]} 4. Qb3 {[%clk 0:02:56]}  Qb6 {[%clk 0:02:57]} 5. Nbd2 {[%clk 0:02:55]}  Nd7 {[%clk 0:02:53]} 6. e3 {[%clk 0:02:54]}  e5 {[%clk 0:02:51]} 7. Be2 {[%clk 0:02:52]}  Ngf6 {[%clk 0:02:50]} 8. h3 {[%clk 0:02:51]}  Bxf3 {[%clk 0:02:48]} 9. Bxf3 {[%clk 0:02:47]}  exd4 {[%clk 0:02:48]} 10. Qxb6 {[%clk 0:02:47]}  axb6 {[%clk 0:02:48]} 11. exd4 {[%clk 0:02:47]}  Be7 {[%clk 0:02:48]} 12. O-O {[%clk 0:02:47]}  O-O {[%clk 0:02:48]} 13. Re1 {[%clk 0:02:42]}  Rfe8 {[%clk 0:02:49]} 14. Nf1 {[%clk 0:02:37]}  g6 {[%clk 0:02:48]} 15. Bf4 {[%clk 0:02:36]}  Bf8 {[%clk 0:02:46]} 16. a3 {[%clk 0:02:36]}  h6 {[%clk 0:02:37]} 17. Nd2 {[%clk 0:02:30]}  d5 {[%clk 0:02:22]} 18. Kf1 {[%clk 0:02:19]}  dxc4 {[%clk 0:02:16]} 19. Nxc4 {[%clk 0:02:20]}  b5 {[%clk 0:02:16]} 20. Nd6 {[%clk 0:02:11]}  Bxd6 {[%clk 0:02:16]} 21. Bxd6 {[%clk 0:02:12]}  Rxe1+ {[%clk 0:02:10]} 22. Rxe1 {[%clk 0:02:12]}  Re8 {[%clk 0:02:10]} 23. Rxe8+ {[%clk 0:02:11]}  Nxe8 {[%clk 0:02:11]} 24. Bb4 {[%clk 0:02:05]}  Nc7 {[%clk 0:02:10]} 25. Bd6 {[%clk 0:02:02]}  Ne8 {[%clk 0:02:04]} 26. Bf4 {[%clk 0:02:01]}  g5 {[%clk 0:02:00]} 27. Bd2 {[%clk 0:01:59]}  Ndf6 {[%clk 0:01:55]} 28. g3 {[%clk 0:01:55]}  Nc7 {[%clk 0:01:55]} 29. h4 {[%clk 0:01:55]}  gxh4 {[%clk 0:01:50]} 30. gxh4 {[%clk 0:01:56]}  Kg7 {[%clk 0:01:50]} 31. Bf4 {[%clk 0:01:54]}  Nfd5 {[%clk 0:01:48]} 32. Be5+ {[%clk 0:01:53]}  f6 {[%clk 0:01:47]} 33. Bd6 {[%clk 0:01:53]}  Ne6 {[%clk 0:01:45]} 34. Bc5 {[%clk 0:01:45]}  Nef4 {[%clk 0:01:41]} 35. Ke1 {[%clk 0:01:31]}  Nd3+ {[%clk 0:01:37]} 36. Ke2 {[%clk 0:01:20]}  Nxb2 {[%clk 0:01:36]} 37. Bg4 {[%clk 0:01:14]}  Nc4 {[%clk 0:01:26]} 38. Bc8 {[%clk 0:00:46]}  b6 {[%clk 0:01:26]} 39. Bb4 {[%clk 0:00:46]}  Nf4+ {[%clk 0:00:41]} 40. Kf3 {[%clk 0:00:39]}  Ng6 {[%clk 0:00:35]} 41. Bb7 {[%clk 0:00:26]}  c5 {[%clk 0:00:27]} 42. dxc5 {[%clk 0:00:23]}  bxc5 {[%clk 0:00:27]} 43. Bxc5 {[%clk 0:00:24]}  Nxh4+ {[%clk 0:00:27]} 44. Ke2 {[%clk 0:00:20]}  Ne5 {[%clk 0:00:26]} 45. Ba6 {[%clk 0:00:19]}  Nd7 {[%clk 0:00:22]} 46. Ba7 {[%clk 0:00:15]}  Nf5 {[%clk 0:00:22]} 47. Bxb5 {[%clk 0:00:15]}  Ne5 {[%clk 0:00:20]} 48. a4 {[%clk 0:00:14]}  h5 {[%clk 0:00:20]} 49. a5 {[%clk 0:00:13]}  Nd6 {[%clk 0:00:20]} 50. Ba6 {[%clk 0:00:09]}  Nc6 {[%clk 0:00:20]} 51. Bc5 {[%clk 0:00:07]}  Ne4 {[%clk 0:00:19]} 52. Bb6 {[%clk 0:00:07]}  Nc3+ {[%clk 0:00:20]} 53. Kf1 {[%clk 0:00:06]}  Nd5 {[%clk 0:00:20]} 54. Bb7 {[%clk 0:00:03]}  Nxb6 {[%clk 0:00:19]} 0-1


[Site "https://www.chess.com"]

[Event "Titled Tuesday Blitz March 15 Early 2022"]
[White "Urazayev, Arystanbek"]
[Black "Yang, Kaiqi"]
[WhiteFideId "13709810"]
[BlackFideId "8604398"]
[WhiteElo "2393"]
[BlackElo "2373"]
[Result "0-1"]
[Round "06"]
[TimeControl "180+1"]
[Date "2022.03.15"]
[WhiteClock "0:01:53"]
[BlackClock "0:01:07"]

1. d4 {[%clk 0:02:54]}  e6 {[%clk 0:02:59]} 2. e4 {[%clk 0:02:54]}  d5 {[%clk 0:02:59]} 3. Nd2 {[%clk 0:02:54]}  Nf6 {[%clk 0:02:57]} 4. e5 {[%clk 0:02:55]}  Nfd7 {[%clk 0:02:58]} 5. Bd3 {[%clk 0:02:55]}  c5 {[%clk 0:02:50]} 6. c3 {[%clk 0:02:55]}  b6 {[%clk 0:02:50]} 7. h4 {[%clk 0:02:50]}  Ba6 {[%clk 0:02:48]} 8. Bxa6 {[%clk 0:02:50]}  Nxa6 {[%clk 0:02:49]} 9. h5 {[%clk 0:02:51]}  h6 {[%clk 0:02:49]} 10. Qg4 {[%clk 0:02:49]}  b5 {[%clk 0:02:43]} 11. a3 {[%clk 0:02:47]}  Qb6 {[%clk 0:02:27]} 12. Ne2 {[%clk 0:02:45]}  c4 {[%clk 0:02:24]} 13. f4 {[%clk 0:02:43]}  Nc7 {[%clk 0:02:21]} 14. f5 {[%clk 0:02:43]}  O-O-O {[%clk 0:01:54]} 15. Nf4 {[%clk 0:02:40]}  Re8 {[%clk 0:01:49]} 16. fxe6 {[%clk 0:02:37]}  Nxe6 {[%clk 0:01:37]} 17. Nxd5 {[%clk 0:02:30]}  Qb7 {[%clk 0:01:33]} 18. Ne3 {[%clk 0:02:31]}  f6 {[%clk 0:01:31]} 19. d5 {[%clk 0:02:04]}  Nec5 {[%clk 0:01:21]} 20. e6 {[%clk 0:02:04]}  Ne5 {[%clk 0:01:16]} 21. Qh3 {[%clk 0:01:57]}  Ncd3+ {[%clk 0:01:11]} 22. Ke2 {[%clk 0:01:58]}  Nf4+ {[%clk 0:01:10]} 23. Kd1 {[%clk 0:01:53]}  Nxh3 {[%clk 0:01:10]} 24. Rxh3 {[%clk 0:01:53]}  Bc5 {[%clk 0:01:10]} 25. Ndf1 {[%clk 0:01:53]}  Rd8 {[%clk 0:01:09]} 26. Kc2 {[%clk 0:01:53]}  Rxd5 {[%clk 0:01:07]} 0-1


[Site "https://www.chess.com"]

[Event "Titled Tuesday Blitz March 15 Early 2022"]
[White "Van Foreest, Jorden"]
[Black "Kamsky, Gata"]
[WhiteFideId "1039784"]
[BlackFideId "2000024"]
[WhiteElo "2609"]
[BlackElo "2645"]
[Result "0-1"]
[Round "06"]
[TimeControl "180+1"]
[Date "2022.03.15"]
[WhiteClock "0:00:04"]
[BlackClock "0:00:11"]

1. Nf3 {[%clk 0:03:00]}  Nf6 {[%clk 0:02:59]} 2. b3 {[%clk 0:03:00]}  g6 {[%clk 0:02:55]} 3. Bb2 {[%clk 0:03:00]}  Bg7 {[%clk 0:02:56]} 4. d4 {[%clk 0:02:59]}  d5 {[%clk 0:02:54]} 5. e3 {[%clk 0:02:59]}  O-O {[%clk 0:02:54]} 6. Be2 {[%clk 0:02:59]}  c6 {[%clk 0:02:51]} 7. O-O {[%clk 0:02:57]}  Bg4 {[%clk 0:02:49]} 8. c4 {[%clk 0:02:53]}  e6 {[%clk 0:02:45]} 9. Nbd2 {[%clk 0:02:49]}  Ne4 {[%clk 0:02:44]} 10. Nxe4 {[%clk 0:02:20]}  dxe4 {[%clk 0:02:41]} 11. Nd2 {[%clk 0:02:20]}  Bxe2 {[%clk 0:02:41]} 12. Qxe2 {[%clk 0:02:21]}  f5 {[%clk 0:02:41]} 13. b4 {[%clk 0:02:20]}  Nd7 {[%clk 0:02:38]} 14. Nb3 {[%clk 0:02:18]}  Qe7 {[%clk 0:02:19]} 15. Bc3 {[%clk 0:01:45]}  e5 {[%clk 0:02:09]} 16. d5 {[%clk 0:01:09]}  cxd5 {[%clk 0:02:08]} 17. cxd5 {[%clk 0:01:09]}  Nb6 {[%clk 0:02:06]} 18. Rfd1 {[%clk 0:01:07]}  Rfd8 {[%clk 0:02:04]} 19. Rd2 {[%clk 0:00:43]}  Rxd5 {[%clk 0:02:01]} 20. Rad1 {[%clk 0:00:43]}  Rxd2 {[%clk 0:01:28]} 21. Nxd2 {[%clk 0:00:43]}  Rd8 {[%clk 0:01:27]} 22. Nb3 {[%clk 0:00:33]}  Rxd1+ {[%clk 0:01:19]} 23. Qxd1 {[%clk 0:00:34]}  Qd7 {[%clk 0:01:18]} 24. Qc1 {[%clk 0:00:30]}  Nd5 {[%clk 0:01:10]} 25. Bd2 {[%clk 0:00:31]}  b6 {[%clk 0:01:09]} 26. h3 {[%clk 0:00:30]}  h5 {[%clk 0:01:08]} 27. Qc4 {[%clk 0:00:30]}  b5 {[%clk 0:01:01]} 28. Qc2 {[%clk 0:00:27]}  Bf8 {[%clk 0:00:59]} 29. a3 {[%clk 0:00:24]}  Nb6 {[%clk 0:00:58]} 30. Na5 {[%clk 0:00:22]}  Qd5 {[%clk 0:00:56]} 31. Kh2 {[%clk 0:00:20]}  Bd6 {[%clk 0:00:54]} 32. Be1 {[%clk 0:00:19]}  Kf7 {[%clk 0:00:47]} 33. Nc6 {[%clk 0:00:18]}  Qc4 {[%clk 0:00:44]} 34. Qxc4+ {[%clk 0:00:15]}  Nxc4 {[%clk 0:00:44]} 35. Nxa7 {[%clk 0:00:16]}  Nxa3 {[%clk 0:00:44]} 36. Bc3 {[%clk 0:00:13]}  Ke6 {[%clk 0:00:44]} 37. Bb2 {[%clk 0:00:12]}  Nc2 {[%clk 0:00:37]} 38. Nxb5 {[%clk 0:00:12]}  Bxb4 {[%clk 0:00:35]} 39. Nc7+ {[%clk 0:00:11]}  Kd7 {[%clk 0:00:35]} 40. Nd5 {[%clk 0:00:10]}  Bd6 {[%clk 0:00:34]} 41. Nb6+ {[%clk 0:00:11]}  Ke6 {[%clk 0:00:34]} 42. Nc4 {[%clk 0:00:12]}  Bc7 {[%clk 0:00:34]} 43. Bc3 {[%clk 0:00:12]}  Kd5 {[%clk 0:00:32]} 44. Nd2 {[%clk 0:00:08]}  Na3 {[%clk 0:00:32]} 45. g4 {[%clk 0:00:06]}  Nb5 {[%clk 0:00:29]} 46. Bb2 {[%clk 0:00:06]}  Ba5 {[%clk 0:00:28]} 47. Nf1 {[%clk 0:00:06]}  f4 {[%clk 0:00:24]} 48. Kg2 {[%clk 0:00:06]}  Nd6 {[%clk 0:00:23]} 49. f3 {[%clk 0:00:06]}  Nc4 {[%clk 0:00:22]} 50. Bc1 {[%clk 0:00:05]}  fxe3 {[%clk 0:00:22]} 51. Bxe3 {[%clk 0:00:05]}  exf3+ {[%clk 0:00:21]} 52. Kxf3 {[%clk 0:00:06]}  e4+ {[%clk 0:00:21]} 53. Ke2 {[%clk 0:00:06]}  Bc7 {[%clk 0:00:21]} 54. Bc1 {[%clk 0:00:04]}  Bd6 {[%clk 0:00:20]} 55. Bg5 {[%clk 0:00:05]}  hxg4 {[%clk 0:00:20]} 56. hxg4 {[%clk 0:00:05]}  Ke6 {[%clk 0:00:20]} 57. Ne3 {[%clk 0:00:04]}  Nxe3 {[%clk 0:00:19]} 58. Bxe3 {[%clk 0:00:05]}  Kd5 {[%clk 0:00:19]} 59. Bc1 {[%clk 0:00:05]}  Bc5 {[%clk 0:00:19]} 60. Bg5 {[%clk 0:00:05]}  Bd4 {[%clk 0:00:19]} 61. Bc1 {[%clk 0:00:06]}  Bg1 {[%clk 0:00:18]} 62. Bg5 {[%clk 0:00:06]}  Bh2 {[%clk 0:00:18]} 63. Bc1 {[%clk 0:00:06]}  Ke5 {[%clk 0:00:18]} 64. Bh6 {[%clk 0:00:07]}  Bf4 {[%clk 0:00:18]} 65. Bg7+ {[%clk 0:00:07]}  Kd5 {[%clk 0:00:18]} 66. Bc3 {[%clk 0:00:08]}  Bg5 {[%clk 0:00:18]} 67. Bb2 {[%clk 0:00:08]}  Ke6 {[%clk 0:00:18]} 68. Bc3 {[%clk 0:00:08]}  Bf6 {[%clk 0:00:17]} 69. Bd2 {[%clk 0:00:09]}  Be5 {[%clk 0:00:16]} 70. Bg5 {[%clk 0:00:09]}  Kd5 {[%clk 0:00:14]} 71. Bh6 {[%clk 0:00:09]}  Bd4 {[%clk 0:00:14]} 72. Bg5 {[%clk 0:00:09]}  Ke5 {[%clk 0:00:13]} 73. Bc1 {[%clk 0:00:09]}  Kd5 {[%clk 0:00:11]} 74. Bf4 {[%clk 0:00:09]}  Bf6 {[%clk 0:00:09]} 75. Bc1 {[%clk 0:00:09]}  Be5 {[%clk 0:00:09]} 76. Be3 {[%clk 0:00:09]}  Bg3 {[%clk 0:00:10]} 77. Bg5 {[%clk 0:00:09]}  Ke5 {[%clk 0:00:10]} 78. Bh6 {[%clk 0:00:10]}  Bf4 {[%clk 0:00:10]} 79. Bg7+ {[%clk 0:00:10]}  Ke6 {[%clk 0:00:11]} 80. Bb2 {[%clk 0:00:11]}  Kd5 {[%clk 0:00:10]} 81. Bc3 {[%clk 0:00:11]}  e3 {[%clk 0:00:09]} 82. Kd3 {[%clk 0:00:08]}  e2 {[%clk 0:00:09]} 83. Kxe2 {[%clk 0:00:08]}  Ke4 {[%clk 0:00:09]} 84. Be1 {[%clk 0:00:07]}  Be5 {[%clk 0:00:09]} 85. g5 {[%clk 0:00:07]}  Bf4 {[%clk 0:00:09]} 86. Kf1 {[%clk 0:00:06]}  Kf3 {[%clk 0:00:09]} 87. Bh4 {[%clk 0:00:05]}  Kg4 {[%clk 0:00:09]} 88. Be1 {[%clk 0:00:06]}  Kf3 {[%clk 0:00:09]} 89. Bh4 {[%clk 0:00:05]}  Be3 {[%clk 0:00:09]} 90. Be1 {[%clk 0:00:04]}  Bxg5 {[%clk 0:00:09]} 91. Bf2 {[%clk 0:00:03]}  Bf6 {[%clk 0:00:10]} 92. Ba7 {[%clk 0:00:01]}  g5 {[%clk 0:00:10]} 93. Bb6 {[%clk 0:00:02]}  g4 {[%clk 0:00:10]} 94. Bc5 {[%clk 0:00:02]}  g3 {[%clk 0:00:10]} 95. Bb6 {[%clk 0:00:03]}  g2+ {[%clk 0:00:10]} 96. Kg1 {[%clk 0:00:03]}  Kg3 {[%clk 0:00:10]} 97. Bc7+ {[%clk 0:00:03]}  Kh3 {[%clk 0:00:10]} 98. Bb6 {[%clk 0:00:03]}  Be5 {[%clk 0:00:11]} 99. Bd4 {[%clk 0:00:04]}  Bh2+ {[%clk 0:00:11]} 100. Kf2 {[%clk 0:00:04]}  g1=Q+ {[%clk 0:00:11]} 0-1


[Site "https://www.chess.com"]

[Event "Titled Tuesday Blitz March 15 Early 2022"]
[White "Xie, Bryan"]
[Black "Kovanova, Baira"]
[WhiteFideId "30941296"]
[BlackFideId "4164083"]
[WhiteElo "1899"]
[BlackElo "2190"]
[Result "1-0"]
[Round "06"]
[TimeControl "180+1"]
[Date "2022.03.15"]
[WhiteClock "0:00:04"]
[BlackClock "0:00:35"]

1. d4 {[%clk 0:02:44]}  Nf6 {[%clk 0:02:58]} 2. Nf3 {[%clk 0:02:44]}  e6 {[%clk 0:02:58]} 3. Bf4 {[%clk 0:02:45]}  d5 {[%clk 0:02:58]} 4. e3 {[%clk 0:02:46]}  Bd6 {[%clk 0:02:58]} 5. Bg3 {[%clk 0:02:46]}  c5 {[%clk 0:02:58]} 6. c3 {[%clk 0:02:43]}  Qc7 {[%clk 0:02:58]} 7. Nbd2 {[%clk 0:02:43]}  O-O {[%clk 0:02:58]} 8. Bd3 {[%clk 0:02:36]}  Nbd7 {[%clk 0:02:53]} 9. Bxd6 {[%clk 0:02:24]}  Qxd6 {[%clk 0:02:53]} 10. O-O {[%clk 0:02:25]}  e5 {[%clk 0:02:53]} 11. dxe5 {[%clk 0:02:26]}  Nxe5 {[%clk 0:02:53]} 12. Nxe5 {[%clk 0:02:27]}  Qxe5 {[%clk 0:02:53]} 13. Nf3 {[%clk 0:02:28]}  Qh5 {[%clk 0:02:52]} 14. c4 {[%clk 0:02:24]}  Be6 {[%clk 0:02:46]} 15. cxd5 {[%clk 0:02:20]}  Bxd5 {[%clk 0:02:42]} 16. Be2 {[%clk 0:02:21]}  Rad8 {[%clk 0:02:40]} 17. Qa4 {[%clk 0:02:06]}  a6 {[%clk 0:02:39]} 18. Rfd1 {[%clk 0:02:01]}  Bc6 {[%clk 0:02:21]} 19. Qa5 {[%clk 0:01:50]}  Rxd1+ {[%clk 0:02:17]} 20. Rxd1 {[%clk 0:01:48]}  Ng4 {[%clk 0:02:15]} 21. h3 {[%clk 0:01:44]}  Ne5 {[%clk 0:02:15]} 22. Nd4 {[%clk 0:01:23]}  Qg6 {[%clk 0:02:00]} 23. Nxc6 {[%clk 0:01:21]}  Qxc6 {[%clk 0:02:00]} 24. Rd8 {[%clk 0:01:15]}  Nd7 {[%clk 0:01:50]} 25. Bf3 {[%clk 0:01:05]}  Qd6 {[%clk 0:01:44]} 26. Bg4 {[%clk 0:00:58]}  f5 {[%clk 0:01:40]} 27. Bxf5 {[%clk 0:00:54]}  Qf6 {[%clk 0:01:34]} 28. Rxd7 {[%clk 0:00:26]}  Qxf5 {[%clk 0:01:32]} 29. Qc7 {[%clk 0:00:25]}  Qxf2+ {[%clk 0:01:31]} 30. Kh2 {[%clk 0:00:26]}  Qf6 {[%clk 0:01:28]} 31. Qxb7 {[%clk 0:00:23]}  Qe5+ {[%clk 0:01:26]} 32. Kg1 {[%clk 0:00:05]}  Qxe3+ {[%clk 0:01:26]} 33. Kh2 {[%clk 0:00:03]}  Qe5+ {[%clk 0:01:18]} 34. Kg1 {[%clk 0:00:03]}  Re8 {[%clk 0:01:13]} 35. Qd5+ {[%clk 0:00:03]}  Qxd5 {[%clk 0:01:11]} 36. Rxd5 {[%clk 0:00:03]}  Re2 {[%clk 0:01:10]} 37. Rxc5 {[%clk 0:00:03]}  Rxb2 {[%clk 0:01:10]} 38. Ra5 {[%clk 0:00:04]}  Rb6 {[%clk 0:01:10]} 39. Kf2 {[%clk 0:00:04]}  Re6 {[%clk 0:01:11]} 40. Kf3 {[%clk 0:00:03]}  Kf7 {[%clk 0:01:11]} 41. Kf4 {[%clk 0:00:03]}  Ke7 {[%clk 0:01:11]} 42. g4 {[%clk 0:00:03]}  h6 {[%clk 0:01:09]} 43. h4 {[%clk 0:00:03]}  Kd7 {[%clk 0:01:09]} 44. g5 {[%clk 0:00:02]}  Rb6 {[%clk 0:01:08]} 45. gxh6 {[%clk 0:00:02]}  gxh6 {[%clk 0:01:08]} 46. Kg4 {[%clk 0:00:03]}  Ke7 {[%clk 0:01:08]} 47. Kh5 {[%clk 0:00:02]}  Kf7 {[%clk 0:01:08]} 48. Rf5+ {[%clk 0:00:02]}  Kg7 {[%clk 0:01:08]} 49. Rd5 {[%clk 0:00:02]}  Rb5 {[%clk 0:00:47]} 50. Rxb5 {[%clk 0:00:03]}  axb5 {[%clk 0:00:48]} 51. a3 {[%clk 0:00:03]}  Kh7 {[%clk 0:00:47]} 52. Kg4 {[%clk 0:00:03]}  Kg6 {[%clk 0:00:47]} 53. h5+ {[%clk 0:00:03]}  Kf6 {[%clk 0:00:47]} 54. Kf4 {[%clk 0:00:03]}  Ke6 {[%clk 0:00:48]} 55. Ke4 {[%clk 0:00:04]}  Kf6 {[%clk 0:00:46]} 56. Kf4 {[%clk 0:00:03]}  Ke6 {[%clk 0:00:47]} 57. Ke4 {[%clk 0:00:03]}  Kf6 {[%clk 0:00:47]} 58. Kd5 {[%clk 0:00:04]}  Kg5 {[%clk 0:00:47]} 59. Kc5 {[%clk 0:00:05]}  Kxh5 {[%clk 0:00:47]} 60. Kxb5 {[%clk 0:00:06]}  Kg4 {[%clk 0:00:41]} 61. a4 {[%clk 0:00:07]}  h5 {[%clk 0:00:41]} 62. a5 {[%clk 0:00:07]}  h4 {[%clk 0:00:41]} 63. a6 {[%clk 0:00:08]}  h3 {[%clk 0:00:42]} 64. a7 {[%clk 0:00:09]}  Kg3 {[%clk 0:00:40]} 65. a8=Q {[%clk 0:00:10]}  Kh2 {[%clk 0:00:40]} 66. Kc4 {[%clk 0:00:09]}  Kg1 {[%clk 0:00:39]} 67. Kd3 {[%clk 0:00:09]}  h2 {[%clk 0:00:39]} 68. Qa1+ {[%clk 0:00:08]}  Kg2 {[%clk 0:00:39]} 69. Qg7+ {[%clk 0:00:07]}  Kh1 {[%clk 0:00:36]} 70. Qh6 {[%clk 0:00:06]}  Kg2 {[%clk 0:00:36]} 71. Qg5+ {[%clk 0:00:04]}  Kh1 {[%clk 0:00:36]} 72. Qh4 {[%clk 0:00:04]}  Kg2 {[%clk 0:00:36]} 73. Ke2 {[%clk 0:00:03]}  h1=Q {[%clk 0:00:35]} 74. Qg4+ {[%clk 0:00:04]}  Kh2 {[%clk 0:00:35]} 75. Kf2 {[%clk 0:00:04]} 1-0


[Site "https://www.chess.com"]

[Event "Titled Tuesday Blitz March 15 Early 2022"]
[White "Xu, Yi"]
[Black "Skliarov, Viktor"]
[WhiteFideId "8605564"]
[BlackFideId "14106736"]
[WhiteElo "2471"]
[BlackElo "2229"]
[Result "1-0"]
[Round "06"]
[TimeControl "180+1"]
[Date "2022.03.15"]
[WhiteClock "0:00:14"]
[BlackClock "0:00:02"]

1. e4 {[%clk 0:02:59]}  c5 {[%clk 0:02:59]} 2. Nf3 {[%clk 0:02:59]}  Nc6 {[%clk 0:02:59]} 3. Bb5 {[%clk 0:02:59]}  e6 {[%clk 0:02:59]} 4. O-O {[%clk 0:02:59]}  Nge7 {[%clk 0:02:58]} 5. Re1 {[%clk 0:02:58]}  Nd4 {[%clk 0:02:58]} 6. Nxd4 {[%clk 0:02:50]}  cxd4 {[%clk 0:02:58]} 7. c3 {[%clk 0:02:49]}  a6 {[%clk 0:02:59]} 8. Bf1 {[%clk 0:02:47]}  d5 {[%clk 0:02:56]} 9. d3 {[%clk 0:02:27]}  dxc3 {[%clk 0:02:52]} 10. Nxc3 {[%clk 0:02:26]}  d4 {[%clk 0:02:47]} 11. Ne2 {[%clk 0:02:24]}  Nc6 {[%clk 0:02:48]} 12. a3 {[%clk 0:02:21]}  Be7 {[%clk 0:02:45]} 13. f4 {[%clk 0:02:21]}  O-O {[%clk 0:02:45]} 14. b4 {[%clk 0:02:11]}  b5 {[%clk 0:02:44]} 15. Kh1 {[%clk 0:02:09]}  Bb7 {[%clk 0:02:44]} 16. Bb2 {[%clk 0:02:07]}  Rc8 {[%clk 0:02:39]} 17. Qd2 {[%clk 0:02:07]}  f5 {[%clk 0:02:22]} 18. exf5 {[%clk 0:02:04]}  exf5 {[%clk 0:02:17]} 19. Ng1 {[%clk 0:02:02]}  Qd5 {[%clk 0:02:10]} 20. Be2 {[%clk 0:01:48]}  Ne5 {[%clk 0:01:05]} 21. Bh5 {[%clk 0:01:46]}  Qxg2+ {[%clk 0:00:18]} 22. Qxg2 {[%clk 0:01:45]}  Bxg2+ {[%clk 0:00:19]} 23. Kxg2 {[%clk 0:01:45]}  Nxd3 {[%clk 0:00:20]} 24. Rxe7 {[%clk 0:01:39]}  Nxf4+ {[%clk 0:00:20]} 25. Kh1 {[%clk 0:01:35]}  Nxh5 {[%clk 0:00:19]} 26. Bxd4 {[%clk 0:01:35]}  Rfd8 {[%clk 0:00:14]} 27. Nf3 {[%clk 0:01:33]}  Rc4 {[%clk 0:00:12]} 28. Be5 {[%clk 0:00:56]}  Rd3 {[%clk 0:00:05]} 29. Ng5 {[%clk 0:00:47]}  Rc8 {[%clk 0:00:05]} 30. Ne6 {[%clk 0:00:46]}  Re3 {[%clk 0:00:04]} 31. Nxg7 {[%clk 0:00:42]}  Rxe5 {[%clk 0:00:04]} 32. Rxe5 {[%clk 0:00:41]}  Nxg7 {[%clk 0:00:05]} 33. Re7 {[%clk 0:00:41]}  Kf8 {[%clk 0:00:05]} 34. Ra7 {[%clk 0:00:40]}  Rc6 {[%clk 0:00:04]} 35. Rd1 {[%clk 0:00:38]}  Ne6 {[%clk 0:00:02]} 36. Rxh7 {[%clk 0:00:29]}  Kg8 {[%clk 0:00:02]} 37. Re7 {[%clk 0:00:28]}  f4 {[%clk 0:00:03]} 38. Re1 {[%clk 0:00:25]}  Nd4 {[%clk 0:00:03]} 39. R7e4 {[%clk 0:00:23]}  Nf3 {[%clk 0:00:03]} 40. Rf1 {[%clk 0:00:22]}  Nd2 {[%clk 0:00:03]} 41. Rg1+ {[%clk 0:00:22]}  Kf7 {[%clk 0:00:02]} 42. Rxf4+ {[%clk 0:00:22]}  Ke7 {[%clk 0:00:03]} 43. Rg7+ {[%clk 0:00:20]}  Ke8 {[%clk 0:00:03]} 44. Rh4 {[%clk 0:00:16]}  Rc1+ {[%clk 0:00:01]} 45. Kg2 {[%clk 0:00:16]}  Kf8 {[%clk 0:00:02]} 46. Rd7 {[%clk 0:00:14]} 1-0


[Site "https://www.chess.com"]

[Event "Titled Tuesday Blitz March 15 Early 2022"]
[White "Zong, Davis"]
[Black "De Souza, Cristiano Gomes"]
[WhiteFideId "30903955"]
[BlackFideId "2151758"]
[WhiteElo "2061"]
[BlackElo "2068"]
[Result "1-0"]
[Round "06"]
[TimeControl "180+1"]
[Date "2022.03.15"]
[WhiteClock "0:01:29"]
[BlackClock "0:01:48"]

1. d4 {[%clk 0:03:00]}  Nf6 {[%clk 0:02:59]} 2. c4 {[%clk 0:03:00]}  g6 {[%clk 0:02:59]} 3. Nc3 {[%clk 0:03:00]}  Bg7 {[%clk 0:03:00]} 4. e4 {[%clk 0:03:01]}  d6 {[%clk 0:03:00]} 5. Nf3 {[%clk 0:03:01]}  O-O {[%clk 0:03:00]} 6. Be2 {[%clk 0:03:01]}  e5 {[%clk 0:03:00]} 7. O-O {[%clk 0:03:00]}  Nc6 {[%clk 0:03:00]} 8. d5 {[%clk 0:03:01]}  Ne7 {[%clk 0:03:00]} 9. b4 {[%clk 0:03:01]}  Nh5 {[%clk 0:02:52]} 10. c5 {[%clk 0:02:56]}  f5 {[%clk 0:02:52]} 11. Ng5 {[%clk 0:02:52]}  Nf6 {[%clk 0:02:50]} 12. f3 {[%clk 0:02:46]}  h6 {[%clk 0:02:49]} 13. Ne6 {[%clk 0:02:46]}  Bxe6 {[%clk 0:02:49]} 14. dxe6 {[%clk 0:02:47]}  Kh7 {[%clk 0:02:45]} 15. Be3 {[%clk 0:02:43]}  Ne8 {[%clk 0:02:37]} 16. Qb3 {[%clk 0:02:29]}  Bf6 {[%clk 0:02:25]} 17. Rfd1 {[%clk 0:02:19]}  Qc8 {[%clk 0:02:21]} 18. Rac1 {[%clk 0:02:17]}  dxc5 {[%clk 0:02:19]} 19. Bxc5 {[%clk 0:02:14]}  Ng7 {[%clk 0:02:14]} 20. Nd5 {[%clk 0:02:05]}  Qxe6 {[%clk 0:02:11]} 21. Nxe7 {[%clk 0:02:00]}  Bxe7 {[%clk 0:01:58]} 22. Qxe6 {[%clk 0:02:00]}  Bxc5+ {[%clk 0:01:56]} 23. Rxc5 {[%clk 0:01:48]}  Nxe6 {[%clk 0:01:57]} 24. Rd7+ {[%clk 0:01:47]}  Kg8 {[%clk 0:01:54]} 25. Bc4 {[%clk 0:01:42]}  Rf6 {[%clk 0:01:48]} 26. Re7 {[%clk 0:01:29]} 1-0


[Site "https://www.chess.com"]